bitfinex/quotes_SOLUSD_20250419
["timestamp","ask_amount","ask_price","bid_price","bid_amount"]
[1745096389434,76.45899175,138.71,138.7,0.063]
[1745096389637,18.64964886,138.7,138.66,0.063]
[1745096389866,44.64964886,138.68,138.66,0.063]
[1745096390135,55.3097062,138.68,138.66,0.063]
[1745096391730,62.52055131,138.68,138.66,0.063]
[1745096401022,62.52055131,138.68,138.67,1e-08]
[1745096401348,18.64964886,138.67,138.66,0.063]
[1745096401548,29.3097062,138.67,138.66,0.063]
[1745096402928,36.52107131,138.67,138.66,0.063]
[1745096409551,50.46107131,138.67,138.66,0.063]
[1745096417353,68.48948408,138.67,138.63,0.063]
[1745096417553,18.64964886,138.63,138.61,0.063]
[1745096417759,43.2497062,138.62,138.61,0.063]
[1745096418650,50.46367243,138.62,138.61,0.063]
[1745096438277,49.96367243,138.62,138.61,0.063]
[1745096444069,44.64964886,138.58,138.55,0.03]
[1745096444255,29.3097062,138.56,138.55,0.03]
[1745096445478,36.52679626,138.56,138.55,0.03]
[1745096447155,25.86673892,138.56,138.55,0.03]
[1745096447463,36.52679626,138.56,138.55,0.03]
[1745096454980,18.64964886,138.56,138.55,0.03]
[1745096455179,13.96,138.57,138.55,10.69005734]
[1745096456969,13.96,138.57,138.55,0.03]
[1745096475024,13.96,138.57,138.56,10.66005734]
[1745096475220,14.06,138.6,138.56,12.22005734]
[1745096475422,14.06,138.6,138.58,10.66005734]
[1745096476815,14.06,138.6,138.59,10.66005734]
[1745096477024,14.06,138.6,138.58,17.87601053]
[1745096477604,14.06,138.6,138.57,17.87653494]
[1745096477926,14.06,138.6,138.57,7.2164776]
[1745096482708,10.66005734,138.61,138.57,7.2164776]
[1745096482932,18.64964886,138.61,138.57,17.87653494]
[1745096484529,18.64964886,138.61,138.58,10.66005734]
[1745096486635,18.64964886,138.61,138.58,17.87604543]
[1745096487235,18.64964886,138.61,138.58,10.66005734]
[1745096487534,18.64964886,138.61,138.57,17.8765777]
[1745096492423,18.64964886,138.61,138.57,7.21652036]
[1745096492623,18.64964886,138.61,138.57,17.8765777]
[1745096495530,18.64964886,138.61,138.58,10.66005734]
[1745096498022,48.52044886,138.56,138.55,0.03]
[1745096498338,48.52044886,138.56,138.51,0.03]
[1745096498339,18.64964886,138.52,138.51,0.03]
[1745096498522,36.52888032,138.52,138.51,0.03]
[1745096505650,26.0,138.5,138.49,0.03]
[1745096505851,14.02,138.52,138.49,0.03]
[1745096506034,24.68005734,138.52,138.49,0.03]
[1745096508457,10.66005734,138.5,138.49,0.03]
[1745096509849,29.3097062,138.51,138.49,0.03]
[1745096510036,18.64964886,138.51,138.49,0.03]
[1745096515155,18.64964886,138.53,138.5,10.66005734]
[1745096515457,14.24,138.53,138.51,10.66005734]
[1745096515842,14.24,138.53,138.5,10.66005734]
[1745096516560,32.88964886,138.56,138.52,10.66005734]
[1745096516880,14.24,138.56,138.53,10.66005734]
[1745096517764,14.24,138.56,138.53,17.87840439]
[1745096521065,33.214721,138.61,138.55,10.66005734]
[1745096521271,14.24,138.59,138.57,10.66005734]
[1745096521470,14.24,138.59,138.56,10.66005734]
[1745096521657,24.90005734,138.59,138.54,16.97295734]
[1745096521868,14.24,138.59,138.54,10.66005734]
[1745096522073,24.90005734,138.59,138.54,10.66005734]
[1745096522867,24.90005734,138.59,138.55,7.21761097]
[1745096523248,10.66005734,138.58,138.54,7.21798248]
[1745096524548,32.11579525,138.59,138.54,10.66005734]
[1745096526773,32.11579525,138.59,138.54,17.87789986]
[1745096533795,24.90005734,138.59,138.54,17.87789986]
[1745096534395,14.24,138.59,138.54,7.21784252]
[1745096534993,21.45568591,138.59,138.54,7.21784252]
[1745096535676,29.3097062,138.55,138.5,1.5813]
[1745096535875,10.66005734,138.53,138.49,0.03]
[1745096536073,10.66005734,138.51,138.49,0.03]
[1745096536776,10.66005734,138.5,138.49,0.03]
[1745096537378,10.66005734,138.51,138.49,0.03]
[1745096539290,17.87982247,138.51,138.49,0.03]
[1745096540099,10.66005734,138.51,138.49,0.03]
[1745096543301,18.64964886,138.51,138.49,0.03]
[1745096543482,29.3097062,138.51,138.49,0.03]
[1745096545101,36.5294178,138.51,138.49,0.03]
[1745096547897,18.64964886,138.53,138.49,0.03]
[1745096548198,29.3097062,138.53,138.49,0.03]
[1745096548996,36.52839342,138.53,138.49,0.03]
[1745096549205,25.86833608,138.53,138.49,0.03]
[1745096549504,10.66005734,138.52,138.49,0.03]
[1745096549884,18.64964886,138.53,138.49,0.03]
[1745096550089,18.64964886,138.53,138.49,10.69005734]
[1745096551507,18.64964886,138.53,138.5,7.2202166]
[1745096553101,18.64964886,138.53,138.49,7.25053216]
[1745096555012,29.3097062,138.53,138.49,7.25053216]
[1745096557407,18.64964886,138.53,138.49,7.25053216]
[1745096560512,29.3097062,138.53,138.49,7.25053216]
[1745096560909,18.64964886,138.53,138.49,7.25053216]
[1745096561309,18.64964886,138.53,138.49,0.03]
[1745096566417,18.64964886,138.53,138.49,10.69005734]
[1745096566718,18.64964886,138.53,138.49,7.25030416]
[1745096583648,33.21786339,138.55,138.5,10.66005734]
[1745096583649,18.64964886,138.55,138.5,10.66005734]
[1745096583829,18.64964886,138.55,138.51,1.644]
[1745096583830,14.1,138.55,138.51,1.644]
[1745096584152,32.74964886,138.58,138.54,10.66005734]
[1745096584330,10.66005734,138.57,138.52,10.66005734]
[1745096584530,32.74964886,138.58,138.54,10.66005734]
[1745096585138,50.62576227,138.58,138.53,17.87837055]
[1745096585553,10.66005734,138.57,138.53,17.87837055]
[1745096587054,39.96570493,138.58,138.53,17.87837055]
[1745096587252,43.4097062,138.58,138.54,10.66005734]
[1745096587444,14.1,138.58,138.55,10.66005734]
[1745096588653,14.1,138.58,138.56,7.21709006]
[1745096589259,14.1,138.58,138.57,10.66005734]
[1745096590967,14.1,138.58,138.57,17.87662658]
[1745096591264,0.063,138.59,138.57,17.87662658]
[1745096602284,10.66005734,138.58,138.52,25.26710314]
[1745096602477,10.66005734,138.58,138.53,10.66005734]
[1745096602652,10.66005734,138.56,138.52,7.21917412]
[1745096603875,17.87725356,138.56,138.52,7.21917412]
[1745096604179,10.66005734,138.55,138.52,7.21917412]
[1745096604555,10.66005734,138.55,138.51,7.2194585]
[1745096605267,10.66005734,138.55,138.5,7.22001152]
[1745096605468,29.3097062,138.54,138.49,10.69005734]
[1745096606080,36.52785064,138.54,138.49,17.9105594]
[1745096606682,29.3097062,138.54,138.49,17.9105594]
[1745096609682,29.3097062,138.54,138.5,17.88002084]
[1745096609883,18.64964886,138.56,138.52,10.66005734]
[1745096611360,18.64964886,138.56,138.52,17.8788087]
[1745096613355,29.3097062,138.56,138.52,17.8788087]
[1745096615978,18.64964886,138.56,138.53,10.66005734]
[1745096616175,14.1,138.57,138.53,17.87824224]
[1745096616361,14.1,138.57,138.54,10.66005734]
[1745096616977,14.1,138.57,138.53,17.87824224]
[1745096624990,14.1,138.57,138.53,7.2181849]
[1745096625170,24.76005734,138.57,138.52,10.66005734]
[1745096625370,29.3097062,138.56,138.51,17.87975266]
[1745096632798,18.64964886,138.56,138.51,17.87975266]
[1745096633275,29.3097062,138.56,138.51,17.87975266]
[1745096634403,18.64964886,138.56,138.53,7.21865299]
[1745096634700,14.1,138.57,138.55,10.66005734]
[1745096634992,14.1,138.57,138.56,10.66005734]
[1745096635782,14.1,138.57,138.56,17.8771474]
[1745096637296,0.063,138.59,138.56,17.8771474]
[1745096637473,0.063,138.59,138.57,10.66005734]
[1745096638001,0.063,138.59,138.56,10.66005734]
[1745096641595,0.063,138.59,138.56,17.87679952]
[1745096642600,0.063,138.59,138.56,7.21674218]
[1745096647003,10.66005734,138.58,138.53,10.66005734]
[1745096647902,10.66005734,138.58,138.54,7.21798044]
[1745096654209,10.66005734,138.57,138.54,7.21798044]
[1745096654911,10.66005734,138.57,138.52,17.87923146]
[1745096657212,24.70005734,138.58,138.52,17.87923146]
[1745096657412,24.70005734,138.58,138.54,7.21813194]
[1745096658718,31.91620746,138.58,138.54,7.21813194]
[1745096659016,10.66005734,138.56,138.52,7.21917412]
[1745096659203,29.3097062,138.57,138.52,7.21917412]
[1745096659407,29.3097062,138.57,138.52,17.87923146]
[1745096664721,14.04,138.58,138.55,10.66005734]
[1745096666206,14.04,138.58,138.55,17.87730091]
[1745096669104,0.063,138.59,138.57,10.66005734]
[1745096669316,0.063,138.59,138.58,10.66005734]
[1745096669512,0.063,138.59,138.57,10.66005734]
[1745096670725,0.063,138.59,138.58,7.21604849]
[1745096675223,0.063,138.59,138.55,12.22255734]
[1745096675528,0.063,138.59,138.56,7.21690149]
[1745096679030,29.3727062,138.59,138.53,44.04648675]
[1745096679212,10.66005734,138.57,138.53,26.0]
[1745096679412,10.66005734,138.58,138.53,36.66005734]
[1745096679625,10.66005734,138.58,138.54,7.21813194]
[1745096681932,10.66005734,138.58,138.54,17.87818928]
[1745096682545,10.66005734,138.58,138.54,7.21813194]
[1745096693735,29.3097062,138.57,138.53,7.21841232]
[1745096693939,43.2897062,138.57,138.53,7.21841232]
[1745096697343,32.62964886,138.57,138.53,7.21841232]
[1745096698741,32.62964886,138.57,138.53,10.66005734]
[1745096701559,32.62964886,138.57,138.54,7.21813194]
[1745096708346,18.64964886,138.57,138.54,7.21813194]
[1745096715757,18.64964886,138.54,138.5,7.2202166]
[1745096716061,10.66005734,138.52,138.5,7.2202166]
[1745096716841,10.66005734,138.52,138.49,7.25061327]
[1745096717970,10.66005734,138.52,138.49,0.03]
[1745096722364,29.3097062,138.51,138.49,0.03]
[1745096722665,10.66005734,138.51,138.49,0.03]
[1745096722873,18.64964886,138.52,138.49,0.03]
[1745096723061,13.96,138.53,138.49,10.69005734]
[1745096723372,13.96,138.53,138.52,10.66005734]
[1745096723674,18.64964886,138.56,138.52,10.66005734]
[1745096723846,18.64964886,138.56,138.53,10.66005734]
[1745096724468,18.64964886,138.56,138.52,10.66005734]
[1745096725162,18.64964886,138.56,138.53,7.21865299]
[1745096725365,13.98,138.57,138.54,10.66005734]
[1745096726672,13.98,138.57,138.54,17.87780231]
[1745096727061,13.98,138.57,138.56,10.66005734]
[1745096727276,0.063,138.59,138.56,10.66005734]
[1745096727600,0.063,138.59,138.58,10.66005734]
[1745096728874,0.063,138.59,138.58,17.87610583]
[1745096745984,0.063,138.62,138.58,35.91622705]
[1745096746168,0.063,138.62,138.61,10.66005734]
[1745096748370,0.063,138.62,138.61,17.87454402]
[1745096751780,0.063,138.62,138.6,7.21476584]
[1745096751973,0.063,138.62,138.6,17.87482318]
[1745096752178,0.063,138.62,138.6,7.21476584]
[1745096752870,0.063,138.62,138.6,17.87482318]
[1745096760494,0.063,138.62,138.6,10.66005734]
[1745096760699,0.063,138.62,138.59,7.2153529]
[1745096760700,0.063,138.62,138.58,10.66005734]
[1745096761711,29.3727062,138.62,138.57,10.66005734]
[1745096762705,36.58684473,138.62,138.57,17.87635304]
[1745096766200,18.71264886,138.62,138.59,10.66005734]
[1745096767710,18.71264886,138.62,138.59,17.87550426]
[1745096768709,18.71264886,138.62,138.59,10.66005734]
[1745096769312,18.71264886,138.62,138.58,17.87586235]
[1745096780318,18.71264886,138.62,138.59,10.66005734]
[1745096783715,18.71264886,138.62,138.59,17.87557962]
[1745096784021,18.71264886,138.62,138.59,10.66005734]
[1745096784722,18.71264886,138.62,138.58,10.66005734]
[1745096784921,0.063,138.62,138.59,10.66005734]
[1745096785921,0.063,138.62,138.56,26.77851523]
[1745096786126,0.063,138.62,138.59,10.66005734]
[1745096787025,0.063,138.62,138.6,10.66005734]
[1745096788603,0.063,138.62,138.6,17.87466253]
[1745096788920,0.063,138.62,138.61,10.66005734]
[1745096789922,0.063,138.62,138.61,17.87454402]
[1745096792232,0.063,138.62,138.61,7.21448668]
[1745096795721,0.063,138.62,138.58,10.66005734]
[1745096796311,0.063,138.62,138.58,17.87610583]
[1745096797823,0.063,138.62,138.6,17.87506455]
[1745096799329,0.063,138.62,138.61,10.66005734]
[1745096799912,0.063,138.62,138.61,17.87454402]
[1745096801409,0.063,138.62,138.61,19.37674402]
[1745096805527,1e-08,138.62,138.61,19.37674402]
[1745096812748,0.063,138.64,138.63,33.21344586]
[1745096812954,0.063,138.64,138.63,43.8735032]
[1745096813544,1e-08,138.64,138.63,43.8735032]
[1745096819141,0.063,138.7,138.66,26.0]
[1745096819446,0.063,138.72,138.69,79.3002867]
[1745096819655,0.063,138.72,138.71,53.3002867]
[1745096820031,0.063,138.72,138.71,10.66005734]
[1745096821137,0.063,138.72,138.71,17.86934289]
[1745096826556,0.063,138.72,138.71,7.20928555]
[1745096829861,0.063,138.72,138.7,10.66005734]
[1745096830047,0.063,138.72,138.68,26.0]
[1745096830048,10.72305734,138.72,138.68,10.66005734]
[1745096830363,0.063,138.72,138.71,10.66005734]
[1745096831960,0.063,138.72,138.71,17.86934289]
[1745096854978,0.063,138.75,138.74,26.0]
[1745096855195,0.063,138.75,138.74,36.66005734]
[1745096855379,0.063,138.75,138.74,43.86778402]
[1745096856064,1e-08,138.75,138.74,125.16778402]
[1745096870302,1e-08,138.75,138.74,99.16778402]
[1745096871103,1e-08,138.75,138.74,17.86778402]
[1745096889218,1e-08,138.75,138.74,7.20772668]
[1745096889521,1e-08,138.75,138.74,17.86778402]
[1745096890320,1e-08,138.75,138.74,7.20772668]
[1745096890497,1e-08,138.75,138.72,7.20876585]
[1745096891107,10.66005735,138.75,138.72,7.20876585]
[1745096891403,10.66005735,138.75,138.71,88.50904698]
[1745096891598,10.66005735,138.75,138.71,7.20904698]
[1745096892511,1e-08,138.75,138.71,17.86910432]
[1745096899231,10.66005734,138.73,138.69,7.21032518]
[1745096899526,10.66005734,138.72,138.68,7.27366136]
[1745096899725,17.01485734,138.73,138.68,7.27366136]
[1745096899919,10.66005734,138.72,138.68,7.27366136]
[1745096901832,6.3548,138.73,138.7,10.66005734]
[1745096902512,6.3548,138.73,138.69,10.66005734]
[1745096903029,6.3548,138.73,138.69,17.86993809]
[1745096904001,6.3548,138.73,138.7,10.66005734]
[1745096904943,6.3548,138.73,138.69,17.86993809]
[1745096905527,17.01485734,138.73,138.69,17.86993809]
[1745096907628,6.3548,138.73,138.69,17.86993809]
[1745096922935,1e-08,138.75,138.72,79.3002867]
[1745096923243,0.063,138.76,138.74,10.66005734]
[1745096923421,0.063,138.76,138.75,10.66005734]
[1745096925036,0.063,138.76,138.75,17.86726454]
[1745096928127,0.063,138.76,138.75,7.2072072]
[1745096928352,0.063,138.76,138.75,17.86726454]
[1745096934049,0.063,138.76,138.73,10.66005734]
[1745096934431,0.063,138.76,138.72,81.3]
[1745096934631,0.063,138.76,138.73,10.66005734]
[1745096935449,0.063,138.76,138.74,10.66005734]
[1745096937951,0.063,138.76,138.74,17.86732066]
[1745096939353,0.063,138.76,138.74,7.20726332]
[1745096940360,0.063,138.76,138.75,10.66005734]
[1745096942260,0.063,138.76,138.75,17.86726454]
[1745096949664,0.063,138.76,138.74,10.66005734]
[1745096953960,0.063,138.76,138.75,7.2072072]
[1745096954167,0.063,138.76,138.75,17.86726454]
[1745096960283,0.063,138.76,138.75,7.2072072]
[1745096970495,0.063,138.76,138.73,26.0]
[1745096970683,0.063,138.76,138.74,10.66005734]
[1745096972481,0.063,138.76,138.75,7.2072072]
[1745096980104,0.063,138.76,138.75,10.66005734]
[1745096983402,0.063,138.76,138.75,17.86726454]
[1745097001027,0.03,138.78,138.75,35.88528255]
[1745097001234,0.03,138.78,138.77,10.66005734]
[1745097004227,0.03,138.78,138.77,17.86622582]
[1745097037568,1e-08,138.78,138.77,17.86622582]
[1745097051269,1e-08,138.78,138.77,7.20616848]
[1745097054377,1e-08,138.78,138.77,17.86622582]
[1745097062295,1e-08,138.78,138.77,23.5885328]
[1745097062477,1e-08,138.78,138.77,123.53818166]
[1745097062794,0.03,138.8,138.79,26.0]
[1745097062994,0.03,138.8,138.79,36.66005734]
[1745097064488,0.03,138.8,138.79,43.86518739]
[1745097068900,1e-08,138.8,138.79,36.51483625]
[1745097069114,1e-08,138.8,138.79,33.20513005]
[1745097075507,1e-08,138.8,138.78,7.20564922]
[1745097075685,10.66005735,138.8,138.78,7.20564922]
[1745097075884,10.66005735,138.8,138.76,7.2066878]
[1745097076713,17.21155734,138.79,138.76,7.2066878]
[1745097077412,6.5515,138.79,138.76,7.2066878]
[1745097080509,1e-08,138.8,138.78,10.66005734]
[1745097080713,1e-08,138.8,138.79,7.20513005]
[1745097082412,1e-08,138.8,138.78,7.20564922]
[1745097089231,1e-08,138.8,138.78,17.86570656]
[1745097090529,1e-08,138.8,138.78,7.20564922]
[1745097092030,1e-08,138.8,138.78,17.86570656]
[1745097094326,1e-08,138.8,138.78,7.20564922]
[1745097097321,1e-08,138.8,138.79,10.66005734]
[1745097099420,1e-08,138.8,138.79,17.86518739]
[1745097117044,1e-08,138.8,138.79,7.20513005]
[1745097118453,10.66005735,138.8,138.74,18.01930046]
[1745097118651,10.66005734,138.77,138.74,18.01930046]
[1745097118828,10.66005734,138.78,138.76,33.2066878]
[1745097119034,10.66005734,138.78,138.76,7.2066878]
[1745097119235,1e-08,138.8,138.76,7.2066878]
[1745097119435,10.66005734,138.78,138.76,7.2066878]
[1745097119951,1e-08,138.8,138.76,7.2066878]
[1745097120154,10.66005734,138.78,138.76,7.2066878]
[1745097121044,10.66005734,138.79,138.76,25.22340731]
[1745097123342,10.66005734,138.78,138.76,25.22340731]
[1745097124334,10.66005734,138.79,138.76,25.22340731]
[1745097126859,10.66005734,138.78,138.76,25.22340731]
[1745097127160,10.66005734,138.77,138.76,7.2066878]
[1745097128076,18.75185734,138.77,138.73,7.20824623]
[1745097128364,10.66005734,138.74,138.73,7.20824623]
[1745097129667,10.66005734,138.75,138.72,7.27176585]
[1745097132366,8.0918,138.77,138.72,25.29368049]
[1745097132566,10.66005734,138.75,138.72,25.29368049]
[1745097136173,10.66005734,138.76,138.72,25.29368049]
[1745097142377,10.66005734,138.75,138.72,25.29368049]
[1745097142577,10.66005734,138.74,138.72,25.29368049]
[1745097143473,10.66005734,138.74,138.72,7.27176585]
[1745097143678,10.66005734,138.73,138.72,7.27176585]
[1745097144569,10.66005734,138.73,138.72,0.063]
[1745097145975,10.66005734,138.74,138.72,0.063]
[1745097148469,10.66005734,138.73,138.72,0.063]
[1745097160610,13.98,138.75,138.72,0.063]
[1745097161085,10.66005734,138.73,138.72,0.063]
[1745097165609,13.98,138.75,138.72,0.063]
[1745097165809,24.64005734,138.75,138.72,0.063]
[1745097166519,10.66005734,138.74,138.72,0.063]
[1745097167308,13.98,138.75,138.72,0.063]
[1745097167487,10.66005734,138.74,138.72,0.063]
[1745097168492,24.64005734,138.75,138.72,0.063]
[1745097175615,10.66005734,138.74,138.72,0.063]
[1745097177118,24.64005734,138.75,138.72,0.063]
[1745097180823,10.66005734,138.75,138.72,0.063]
[1745097191935,13.96,138.76,138.72,0.063]
[1745097192131,10.66005734,138.75,138.72,0.063]
[1745097197737,13.96,138.76,138.72,0.063]
[1745097197919,10.66005734,138.75,138.72,0.063]
[1745097198729,13.96,138.76,138.72,0.063]
[1745097199028,10.66005734,138.75,138.72,0.063]
[1745097212744,1e-08,138.8,138.72,10.72305734]
[1745097212950,10.66005734,138.78,138.73,10.66005734]
[1745097214750,10.66005734,138.78,138.74,7.20772668]
[1745097218646,13.96,138.79,138.74,7.20772668]
[1745097218647,10.66005734,138.77,138.74,7.20772668]
[1745097224249,6.4332,138.77,138.72,0.063]
[1745097224450,39.98000001,138.8,138.72,7.27171396]
[1745097224754,10.66005734,138.73,138.72,0.063]
[1745097231948,7.2066878,138.76,138.72,0.063]
[1745097232152,10.66005734,138.73,138.72,0.063]
[1745097234753,7.20740253,138.75,138.72,0.063]
[1745097234945,10.66005734,138.73,138.72,0.063]
[1745097240466,10.66005734,138.74,138.72,0.063]
[1745097240643,10.66005734,138.73,138.72,0.063]
[1745097244766,13.98,138.76,138.72,0.063]
[1745097244964,24.64005734,138.76,138.72,0.063]
[1745097245159,13.98,138.76,138.72,0.063]
[1745097245364,13.98,138.76,138.72,10.72305734]
[1745097245752,13.98,138.76,138.72,0.063]
[1745097246065,13.98,138.76,138.72,10.72305734]
[1745097248482,13.98,138.76,138.73,7.20824623]
[1745097248970,89.60516593,138.79,138.73,17.86830357]
[1745097248971,10.66005734,138.78,138.73,17.86830357]
[1745097249354,10.66005734,138.78,138.73,35.88891915]
[1745097250074,24.64005734,138.79,138.74,10.66005734]
[1745097250378,10.66005734,138.78,138.73,35.88891915]
[1745097253567,13.98,138.79,138.75,10.66005734]
[1745097253963,1e-08,138.8,138.77,10.66005734]
[1745097254278,1e-08,138.8,138.76,10.66005734]
[1745097254477,1e-08,138.8,138.78,10.66005734]
[1745097254681,1e-08,138.8,138.77,10.66005734]
[1745097255681,1e-08,138.8,138.78,7.20564922]
[1745097256383,1e-08,138.8,138.78,17.86570656]
[1745097256587,1e-08,138.8,138.78,7.20564922]
[1745097259387,1e-08,138.8,138.78,17.86570656]
[1745097260285,1e-08,138.8,138.79,10.66005734]
[1745097261783,1e-08,138.8,138.79,17.86518739]
[1745097262079,1e-08,138.8,138.79,36.51483625]
[1745097263487,1e-08,138.8,138.79,7.20513005]
[1745097263789,1e-08,138.8,138.79,17.86518739]
[1745097265190,1e-08,138.8,138.79,36.51483625]
[1745097266270,1e-08,138.81,138.8,18.64964886]
[1745097266470,1e-08,138.81,138.8,36.51431715]
[1745097267986,1e-08,138.82,138.8,36.51431715]
[1745097268187,1e-08,138.82,138.81,36.66005734]
[1745097269184,1e-08,138.82,138.81,62.51379812]
[1745097270985,1e-08,138.82,138.81,36.51379812]
[1745097271774,1e-08,138.82,138.81,40.16671497]
[1745097272793,1e-08,138.82,138.81,36.51379812]
[1745097281794,1e-08,138.82,138.81,17.86414926]
[1745097283992,1e-08,138.82,138.81,43.86414926]
[1745097284795,1e-08,138.82,138.81,7.20409192]
[1745097284994,10.66005735,138.82,138.81,7.20409192]
[1745097285600,1e-08,138.82,138.8,7.20461095]
[1745097285994,1e-08,138.82,138.8,17.86466829]
[1745097289883,1e-08,138.82,138.8,7.20461095]
[1745097290078,10.66005735,138.82,138.8,7.20461095]
[1745097290400,10.66005734,138.81,138.77,26.0]
[1745097290705,10.66005734,138.8,138.76,25.22324868]
[1745097291102,10.66005734,138.8,138.76,51.22324868]
[1745097294282,10.66005734,138.81,138.76,61.88330602]
[1745097295203,10.66005734,138.8,138.76,7.2066878]
[1745097295501,10.66005734,138.79,138.76,7.2066878]
[1745097296810,10.66005734,138.79,138.75,7.2072072]
[1745097302313,10.66005734,138.79,138.75,25.22522521]
[1745097303007,12.32075734,138.81,138.76,10.66005734]
[1745097303500,10.66005734,138.8,138.75,35.88528255]
[1745097304406,10.66005734,138.79,138.75,25.22522521]
[1745097305110,10.66005734,138.78,138.75,25.22522521]
[1745097311006,10.66005734,138.78,138.75,7.2072072]
[1745097315014,10.66005734,138.76,138.75,7.2072072]
[1745097315407,10.66005734,138.76,138.73,7.20824623]
[1745097315608,10.66005734,138.74,138.73,7.20824623]
[1745097315822,10.66005734,138.74,138.72,7.27153619]
[1745097316000,1.5495,138.77,138.72,7.27153619]
[1745097316001,10.66005734,138.73,138.72,7.27153619]
[1745097316724,10.66005734,138.73,138.72,0.063]
[1745097317836,10.66005734,138.74,138.72,0.063]
[1745097322403,10.66005734,138.73,138.72,0.063]
[1745097323940,1.5495,138.77,138.72,0.063]
[1745097324229,10.66005734,138.73,138.72,0.063]
[1745097325831,1.5495,138.77,138.72,0.063]
[1745097326130,10.66005734,138.73,138.72,0.063]
[1745097327731,1.5495,138.77,138.72,0.063]
[1745097327930,10.66005734,138.73,138.72,0.063]
[1745097351548,10.66005734,138.73,138.72,0.063]
[1745097366351,82.4,138.75,138.72,0.063]
[1745097366557,10.66005734,138.73,138.72,0.063]
[1745097370761,10.66005734,138.74,138.72,0.063]
[1745097371871,20.1536,138.76,138.72,0.063]
[1745097372243,10.66005734,138.74,138.72,0.063]
[1745097372745,10.66005734,138.73,138.72,0.063]
[1745097374969,10.66005734,138.74,138.72,0.063]
[1745097381874,14.04,138.76,138.72,0.063]
[1745097382265,10.66005734,138.73,138.72,0.063]
[1745097388162,10.66005734,138.74,138.72,0.063]
[1745097390178,10.66005734,138.73,138.72,0.063]
[1745097391863,14.04,138.75,138.72,0.063]
[1745097392180,10.66005734,138.73,138.72,0.063]
[1745097396785,10.66005734,138.74,138.72,0.063]
[1745097397191,14.04,138.75,138.72,0.063]
[1745097397578,10.66005734,138.74,138.72,0.063]
[1745097397982,88.7073,138.8,138.72,26.063]
[1745097398183,1e-08,138.82,138.79,10.66005734]
[1745097398381,1e-08,138.82,138.8,10.66005734]
[1745097398688,1e-08,138.82,138.78,18.64964886]
[1745097399086,10.66005734,138.81,138.77,26.0]
[1745097399283,10.66005734,138.81,138.78,7.20564922]
[1745097399687,10.66005735,138.82,138.78,7.20564922]
[1745097400190,1e-08,138.82,138.78,7.20564922]
[1745097400384,10.66005734,138.81,138.78,7.20564922]
[1745097400570,1e-08,138.82,138.78,25.21977229]
[1745097400769,10.66005734,138.8,138.78,7.20564922]
[1745097401389,10.66005735,138.82,138.78,7.20564922]
[1745097401889,10.66005734,138.81,138.78,7.20564922]
[1745097403192,1e-08,138.82,138.78,17.86570656]
[1745097403378,1e-08,138.82,138.8,10.66005734]
[1745097404078,1e-08,138.82,138.79,10.66005734]
[1745097405396,1e-08,138.82,138.8,7.20461095]
[1745097405593,1e-08,138.82,138.81,10.66005734]
[1745097407092,1e-08,138.82,138.81,17.86414926]
[1745097409590,1e-08,138.82,138.81,7.20409192]
[1745097413094,1e-08,138.82,138.81,17.86414926]
[1745097414202,1e-08,138.82,138.81,38.07809812]
[1745097415503,1e-08,138.82,138.81,19.42844926]
[1745097418910,1e-08,138.82,138.81,45.42844926]
[1745097419086,1e-08,138.82,138.81,33.20409192]
[1745097420002,1e-08,138.82,138.81,43.86414926]
[1745097420206,1e-08,138.82,138.81,33.20409192]
[1745097421206,1e-08,138.82,138.81,7.20409192]
[1745097423410,1e-08,138.82,138.78,54.67418041]
[1745097423411,1e-08,138.82,138.79,7.20513005]
[1745097425711,10.66005735,138.82,138.79,7.20513005]
[1745097427217,1e-08,138.82,138.79,7.20513005]
[1745097428613,10.66005735,138.82,138.79,7.20513005]
[1745097428810,10.66005734,138.8,138.78,7.20545212]
[1745097429923,10.66005734,138.8,138.76,7.2066878]
[1745097430216,10.66005734,138.8,138.76,33.2066878]
[1745097430415,10.66005734,138.79,138.76,33.2066878]
[1745097430901,22.76358664,138.82,138.76,33.2066878]
[1745097430902,10.66005734,138.78,138.76,7.2066878]